fUST/lending_fUST_20251220
["ID","MTS","AMOUNT","RATE_DAILY","PERIOD"]
[399271889,1766224719575,-638.84,0.00055068,120]
[399271890,1766224719607,-1765.27,0.00055068,120]
[399271891,1766224719639,-1047.7,0.00055068,120]
[399271892,1766224719672,-500.0,0.00055068,120]
[399271893,1766224719705,-1746.61,0.00055068,120]
[399271894,1766224719737,-1334.52,0.00055068,120]
[399271895,1766224719767,-500.0,0.00055068,120]
[399271896,1766224719798,-565.07166602,0.00055068,120]
[399271897,1766224719829,-1862.6,0.00055068,120]
[399271898,1766224719860,-500.0,0.00055068,120]
[399271899,1766224719891,-500.0,0.00055068,120]
[399271900,1766224719923,-500.0,0.00055068,120]
[399271901,1766224719955,-1992.67,0.00055068,120]
[399271902,1766224719988,-500.0,0.00055068,120]
[399271903,1766224720022,-500.0,0.00055068,120]
[399271904,1766224720054,-500.0,0.00055068,120]
[399271905,1766224720092,-500.0,0.00055068,120]
[399271906,1766224720125,-1573.71,0.00055068,120]
[399271907,1766224720159,-1315.85,0.00055068,120]
[399271908,1766224720193,-500.0,0.00055068,120]
[399271909,1766224720228,-500.0,0.00055068,120]
[399271910,1766224720262,-500.0,0.00055068,120]
[399271911,1766224720295,-801.95,0.00055068,120]
[399271912,1766224720329,-500.0,0.00055068,120]
[399271913,1766224720362,-500.0,0.00055068,120]
[399271914,1766224720396,-500.0,0.00055068,120]
[399271915,1766224720429,-553.11,0.00055068,120]
[399271916,1766224720462,-1662.46,0.00055068,120]
[399271917,1766224720495,-500.0,0.00055068,120]
[399271919,1766224720528,-500.0,0.00055068,120]
[399271920,1766224720561,-500.0,0.00055068,120]
[399271921,1766224720594,-1067.2,0.00055068,120]
[399271922,1766224720626,-918.2,0.00055068,120]
[399271923,1766224720658,-500.0,0.00055068,120]
[399271924,1766224720690,-500.0,0.00055068,120]
[399271925,1766224720722,-500.0,0.00055068,120]
[399271926,1766224720754,-689.18,0.00055068,120]
[399271927,1766224720786,-1473.04,0.00055068,30]
[399271928,1766224720821,-500.0,0.00055068,120]
[399271929,1766224720853,-500.0,0.00055068,120]
[399271930,1766224720885,-500.0,0.00055068,120]
[399271931,1766224720916,-500.0,0.00055068,120]
[399271932,1766224720950,-500.0,0.00055068,120]
[399271933,1766224720984,-500.0,0.00055068,120]
[399271934,1766224721018,-560.57976754,0.00055068,120]
[399271935,1766224721052,-1856.59,0.00055068,120]
[399271936,1766224721086,-500.0,0.00055068,120]
[399271937,1766224721120,-500.0,0.00055068,120]
[399271938,1766224721152,-735.23,0.00055068,120]
[399271939,1766224721187,-500.0,0.00055068,120]
[399271940,1766224721421,-546.2,0.00055068,120]
[399271941,1766224721460,-500.0,0.00055068,120]
[399271942,1766224721492,-500.0,0.00055068,120]
[399271943,1766224721524,-544.49,0.00055068,120]
[399271944,1766224721556,-500.0,0.00055068,120]
[399271945,1766224721589,-856.69,0.00055068,120]
[399271946,1766224721620,-500.0,0.00055068,120]
[399271947,1766224721652,-924.16,0.00055068,120]
[399271948,1766224721683,-500.0,0.00055068,120]
[399271949,1766224721714,-500.0,0.00055068,120]
[399271950,1766224721747,-500.0,0.00055068,120]
[399271951,1766224721779,-500.0,0.00055068,120]
[399271952,1766224721810,-565.46,0.00055068,120]
[399271953,1766224721842,-500.0,0.00055068,120]
[399271954,1766224721873,-1528.59,0.00055068,120]
[399271955,1766224721904,-1600.32,0.00055068,120]
[399271956,1766224721938,-701.49,0.00055068,120]
[399271957,1766224721974,-895.04,0.00055068,120]
[399271958,1766224722010,-521.34,0.00055068,120]
[399271959,1766224722044,-500.0,0.00055068,120]
[399271960,1766224722077,-1225.9,0.00055068,120]
[399271961,1766224722109,-500.0,0.00055068,120]
[399271962,1766224722142,-500.0,0.00055068,120]
[399271963,1766224722188,-500.0,0.00055068,120]
[399271964,1766224722225,-688.73,0.00055068,120]
[399271965,1766224722260,-638.05,0.00055068,120]
[399271966,1766224722296,-500.0,0.00055068,120]
[399271967,1766224722330,-500.0,0.00055068,120]
[399271968,1766224722364,-1875.49,0.00055068,120]
[399271969,1766224722399,-698.55,0.00055068,120]
[399271970,1766224722433,-1539.06,0.00055068,120]
[399271971,1766224722468,-1574.56,0.00055068,120]
[399271972,1766224722502,-1510.22,0.00055068,120]
[399271973,1766224722535,-500.0,0.00055068,120]
[399271974,1766224722569,-500.0,0.00055068,120]
[399271975,1766224722601,-642.83,0.00055068,120]
[399271976,1766224722634,-500.0,0.00055068,120]
[399271977,1766224722667,-599.09,0.00055068,120]
[399271978,1766224722700,-1734.45,0.00055068,120]
[399271979,1766224722732,-500.0,0.00055068,120]
[399271980,1766224722765,-500.0,0.00055068,120]
[399271981,1766224722798,-649.39,0.00055068,120]
[399271982,1766224722830,-500.0,0.00055068,120]
[399271983,1766224722863,-1037.51,0.00055068,120]
[399271984,1766224722895,-2643.89,0.00055068,120]
[399271985,1766224722926,-500.0,0.00055068,120]
[399271986,1766224722959,-542.81,0.00055068,120]
[399271987,1766224722994,-500.0,0.00055068,120]
[399271988,1766224723027,-502.93456213,0.00055068,120]
[399271989,1766224723060,-500.0,0.00055068,120]
[399271990,1766224723093,-500.0,0.00055068,120]
[399271991,1766224723125,-595.52,0.00055068,120]
[399271992,1766224723157,-500.0,0.00055068,120]
[399271993,1766224723193,-2698.45,0.00055068,30]
[399271994,1766224723227,-500.0,0.00055068,120]
[399271995,1766224723261,-1067.31,0.00055068,120]
[399271996,1766224723294,-1695.13,0.00055068,120]
[399271997,1766224723326,-209.64181472,0.00055068,120]
[399271998,1766224723357,-1062.8,0.00055068,120]
[399271999,1766224723390,-1015.34,0.00055068,120]
[399272000,1766224723423,-418.117269,0.00055068,120]
[399272001,1766224723457,-500.0,0.00055068,120]
[399272002,1766224723489,-500.0,0.00055068,120]
[399272003,1766224723521,-1880.2,0.00055068,120]
[399272004,1766224723553,-500.0,0.00055068,120]
[399272005,1766224723587,-658.83,0.00055068,120]
[399272006,1766224723619,-579.25571987,0.00055068,120]
[399272007,1766224723654,-592.64,0.00055068,120]
[399272008,1766224723686,-500.0,0.00055068,120]
[399272009,1766224723717,-500.0,0.00055068,120]
[399272010,1766224723748,-503.84103411,0.00055068,120]
[399272011,1766224723779,-1664.46,0.00055068,120]
[399272012,1766224723810,-877.43,0.00055068,120]
[399272013,1766224723841,-500.0,0.00055068,120]
[399272014,1766224723873,-1127.5,0.00055068,120]
[399272015,1766224723904,-862.44,0.00055068,120]
[399272016,1766224723938,-2419.08,0.00055068,120]
[399272017,1766224723974,-500.0,0.00055068,120]
[399272018,1766224724009,-1075.05,0.00055068,120]
[399272019,1766224724043,-970.66,0.00055068,120]
[399272020,1766224724076,-500.0,0.00055068,120]
[399272021,1766224724106,-2030.39,0.00055068,120]
[399272022,1766224724138,-500.0,0.00055068,120]
[399272023,1766224724172,-1860.91,0.00055068,120]
[399272024,1766224724206,-1064.37,0.00055068,120]
[399272025,1766224724240,-505.8,0.00055068,120]
[399272026,1766224724271,-502.24880271,0.00055068,120]
[399272027,1766224724303,-1269.97,0.00055068,120]
[399272028,1766224724337,-500.0,0.00055068,120]
[399272029,1766224724370,-1583.57,0.00055068,120]
[399272030,1766224724403,-500.0,0.00055068,120]
[399272031,1766224724437,-476.97887126,0.00055068,120]
[399272032,1766224724474,-874.33,0.00055068,120]
[399272033,1766224724509,-500.0,0.00055068,120]
[399272034,1766224724715,-500.0,0.00055068,120]
[399272035,1766224724750,-2653.19,0.00055068,120]
[399272036,1766224724784,-500.0,0.00055068,120]
[399272037,1766224724815,-500.0,0.00055068,120]
[399272038,1766224724846,-500.0,0.00055068,120]
[399272039,1766224724876,-548.14,0.00055068,120]
[399272040,1766224724907,-500.0,0.00055068,120]
[399272041,1766224724939,-1198.41,0.00055068,120]
[399272042,1766224724975,-500.0,0.00055068,120]
[399272043,1766224725006,-500.0,0.00055068,120]
[399272044,1766224725038,-1858.76,0.00055068,120]
[399272045,1766224725071,-500.0,0.00055068,120]
[399272046,1766224725111,-500.0,0.00055068,120]
[399272047,1766224725149,-500.0,0.00055068,120]
[399272048,1766224725186,-1582.72,0.00055068,120]
[399272049,1766224725226,-500.0,0.00055068,120]
[399272050,1766224725273,-748.65,0.00055068,120]
[399272051,1766224725312,-500.0,0.00055068,120]
[399272052,1766224725348,-524.58,0.00055068,120]
[399272053,1766224725385,-1422.38,0.00055068,120]
[399272054,1766224725421,-1799.07,0.00055068,120]
[399272055,1766224725454,-543.86,0.00055068,120]
[399272056,1766224725486,-500.0,0.00055068,120]
[399272057,1766224725518,-1427.24,0.00055068,120]
[399272058,1766224725549,-500.0,0.00055068,120]
[399272059,1766224725581,-626.87,0.00055068,120]
[399272060,1766224725612,-1073.62,0.00055068,120]
[399272061,1766224725643,-500.0,0.00055068,120]
[399272062,1766224725675,-500.0,0.00055068,120]
[399272063,1766224725705,-500.0,0.00055068,120]
[399272064,1766224725737,-500.0,0.00055068,120]
[399272065,1766224725769,-905.55,0.00055068,120]
[399272066,1766224725801,-500.0,0.00055068,120]
[399272067,1766224725833,-1256.4,0.00055068,120]
[399272068,1766224725866,-332.65,0.00055068,120]
[399272069,1766224725896,-1358.74,0.00055068,120]
[399272070,1766224725927,-500.0,0.00055068,120]
[399272071,1766224725958,-538.21689686,0.00055068,120]
[399272072,1766224725989,-1912.62,0.00055068,120]
[399272073,1766224726023,-1608.77,0.00055068,120]
[399272074,1766224726055,-1030.31,0.00055068,120]
[399272075,1766224726087,-379.35580967,0.00055068,120]
[399272076,1766224726118,-500.0,0.00055068,120]
[399272077,1766224726151,-500.0,0.00055068,120]
[399272078,1766224726186,-1547.5,0.00055068,120]
[399272079,1766224726224,-500.0,0.00055068,120]
[399272080,1766224726258,-500.0,0.00055068,120]
[399272081,1766224726292,-1125.82,0.00055068,120]
[399272082,1766224726325,-500.0,0.00055068,120]
[399272083,1766224726360,-671.07,0.00055068,120]
[399272084,1766224726393,-728.02,0.00055068,120]
[399272085,1766224726426,-2090.75,0.00055068,120]
[399272086,1766224726459,-500.0,0.00055068,120]
[399272087,1766224726491,-500.0,0.00055068,120]
[399272088,1766224726522,-500.0,0.00055068,120]
[399272089,1766224726555,-1469.04,0.00055068,120]
[399272090,1766224726586,-500.0,0.00055068,120]
[399272091,1766224726617,-1539.27,0.00055068,60]
[399272092,1766224726661,-1176.57,0.00055068,120]
[399272093,1766224726693,-500.0,0.00055068,120]
[399272094,1766224726729,-500.0,0.00055068,120]
[399272095,1766224726765,-537.31,0.00055068,120]
[399272096,1766224726798,-1063.59,0.00055068,120]
[399272097,1766224726831,-500.0,0.00055068,120]
[399272098,1766224726865,-2422.7,0.00055068,120]
[399272099,1766224726899,-2188.8,0.00055068,120]
[399272100,1766224726933,-1083.37,0.00055068,120]
[399272101,1766224726968,-2681.42,0.00055068,120]
[399272102,1766224727000,-518.09110073,0.00055068,120]
[399272103,1766224727036,-903.36,0.00055068,120]
[399272104,1766224727069,-1646.16,0.00055068,120]
[399272105,1766224727102,-2528.18,0.00055068,120]
[399272106,1766224727135,-500.0,0.00055068,120]
[399272107,1766224727167,-709.95,0.00055068,120]
[399272108,1766224727201,-500.0,0.00055068,120]
[399272109,1766224727234,-2813.65,0.00055068,120]
[399272110,1766224727267,-500.0,0.00055068,120]
[399272111,1766224727299,-3174.81,0.00055068,120]
[399272112,1766224727330,-676.08,0.00055068,120]
[399272113,1766224727363,-500.0,0.00055068,120]
[399272114,1766224727396,-1447.4,0.00055068,120]
[399272115,1766224727429,-1662.03,0.00055068,120]
[399272116,1766224727459,-569.53,0.00055068,120]
[399272117,1766224727489,-500.0,0.00055068,120]
[399272118,1766224727520,-500.0,0.00055068,120]
[399272119,1766224727551,-500.0,0.00055068,120]
[399272120,1766224727583,-500.0,0.00055068,60]
[399272121,1766224727614,-1384.97,0.00055068,120]
[399272122,1766224727645,-500.0,0.00055068,120]
[399272123,1766224727676,-1267.37,0.00055068,120]
[399272124,1766224727706,-1954.53,0.00055068,120]
[399272125,1766224727737,-500.0,0.00055068,120]
[399272126,1766224727767,-1935.48,0.00055068,120]
[399272127,1766224727798,-1851.37,0.00055068,120]
[399272128,1766224727829,-500.0,0.00055068,120]
[399272129,1766224728003,-1984.59,0.00055068,120]
[399272130,1766224728036,-2201.82,0.00055068,120]
[399272131,1766224728069,-1365.69,0.00055068,120]
[399272132,1766224728101,-500.0,0.00055068,120]
[399272133,1766224728133,-1796.64,0.00055068,120]
[399272134,1766224728167,-500.0,0.00055068,120]
[399272135,1766224728203,-600.95,0.00055068,120]
[399272136,1766224728236,-500.0,0.00055068,30]
[399272137,1766224728271,-1711.07,0.00055068,120]
[399272138,1766224728304,-1000.0,0.00055068,120]
[399272139,1766224728338,-2066.17,0.00055068,120]
[399272140,1766224728371,-504.24580927,0.00055068,120]
[399272141,1766224728404,-613.43298882,0.00055068,120]
[399272142,1766224728437,-500.0,0.00055068,120]
[399272143,1766224728470,-978.46,0.00055068,120]
[399272144,1766224728503,-876.15,0.00055068,120]
[399272145,1766224728535,-533.50493659,0.00055068,120]
[399272146,1766224728566,-1243.4,0.00055068,120]
[399272147,1766224728597,-1112.22,0.00055068,120]
[399272148,1766224728631,-1585.47,0.00055068,120]
[399272149,1766224728664,-516.5,0.00055068,120]
[399272150,1766224728696,-500.0,0.00055068,120]
[399272151,1766224728730,-868.83,0.00055068,120]
[399272152,1766224728762,-500.0,0.00055068,120]
[399272153,1766224728793,-1160.1,0.00055068,120]
[399272154,1766224728824,-500.0,0.00055068,120]
[399272155,1766224728856,-875.33,0.00055068,120]
[399272156,1766224728887,-960.25,0.00055068,120]
[399272157,1766224728918,-616.4,0.00055068,120]
[399272158,1766224728952,-592.31,0.00055068,120]
[399272159,1766224728985,-500.0,0.00055068,120]
[399272160,1766224729017,-500.0,0.00055068,120]
[399272161,1766224729050,-500.0,0.00055068,120]
[399272162,1766224729086,-500.0,0.00055068,120]
[399272163,1766224729119,-500.0,0.00055068,120]
[399272164,1766224729152,-785.42,0.00055068,120]
[399272165,1766224729186,-500.0,0.00055068,120]
[399272166,1766224729220,-500.0,0.00055068,120]
[399272167,1766224729256,-1000.0,0.00055068,120]
[399272168,1766224729290,-2196.07,0.00055068,120]
[399272169,1766224729322,-1496.01,0.00055068,120]
[399272170,1766224729355,-1078.57,0.00055068,120]
[399272171,1766224729391,-1080.26,0.00055068,120]
[399272172,1766224729422,-500.0,0.00055068,120]
[399272173,1766224729454,-500.0,0.00055068,120]
[399272174,1766224729486,-874.99,0.00055068,120]
[399272175,1766224729518,-500.0,0.00055068,120]
[399272176,1766224729550,-2637.22,0.00055068,120]
[399272177,1766224729582,-2962.87,0.00055068,120]
[399272178,1766224729617,-1765.67,0.00055068,120]
[399272179,1766224729649,-500.0,0.00055068,120]
[399272180,1766224729681,-500.0,0.00055068,120]
[399272181,1766224729715,-1389.11,0.00055068,120]
[399272182,1766224729749,-500.0,0.00055068,120]
[399272183,1766224729782,-953.97,0.00055068,120]
[399272184,1766224729814,-2048.02,0.00055068,120]
[399272185,1766224729845,-1006.1,0.00055068,120]
[399272186,1766224729877,-888.4,0.00055068,120]
[399272187,1766224729912,-500.0,0.00055068,120]
[399272188,1766224729945,-500.0,0.00055068,120]
[399272189,1766224729979,-727.21,0.00055068,120]
[399272190,1766224730015,-500.0,0.00055068,120]
[399272191,1766224730049,-500.0,0.00055068,120]
[399272192,1766224730083,-1559.84,0.00055068,120]
[399272193,1766224730116,-500.0,0.00055068,120]
[399272194,1766224730148,-575.61,0.00055068,120]
[399272195,1766224730181,-500.0,0.00055068,120]
[399272196,1766224730215,-954.98,0.00055068,120]
[399272197,1766224730251,-500.0,0.00055068,120]
[399272198,1766224730284,-500.0,0.00055068,120]
[399272199,1766224730325,-582.32022367,0.00055068,120]
[399272200,1766224730359,-153.0,0.00055068,60]
[399272201,1766224730392,-153.0,0.00055068,60]
[399272202,1766224730426,-153.0,0.00055068,60]
[399272203,1766224730459,-153.0,0.00055068,60]
[399272204,1766224730492,-153.0,0.00055068,60]
[399272205,1766224730523,-153.0,0.00055068,60]
[399272206,1766224730556,-153.0,0.00055068,60]
[399272207,1766224730588,-153.0,0.00055068,60]
[399272208,1766224730619,-153.0,0.00055068,60]
[399272209,1766224730652,-153.0,0.00055068,60]
[399272210,1766224730684,-153.0,0.00055068,60]
[399272211,1766224730715,-164.3156704,0.00055068,60]
[399272212,1766224730746,-153.0,0.00055068,60]
[399272213,1766224730777,-153.0,0.00055068,60]
[399272214,1766224730810,-153.0,0.00055068,60]
[399272215,1766224730840,-10048.66692277,0.00055333,120]
[399272216,1766224730872,-150.0,0.00055342,60]
[399272217,1766224730904,-834.680394,0.00055342,120]
[399272218,1766224730935,-500.0,0.00055342,120]
[399272219,1766224730973,-500.0,0.00055342,120]
[399272220,1766224731007,-500.0,0.00055342,120]
[399272221,1766224731040,-597.95,0.00055342,120]
[399272222,1766224731074,-588.63,0.00055342,120]
[399272223,1766224731108,-571.4343381,0.00055342,120]
[399272224,1766224731289,-500.0,0.00055342,120]
[399272225,1766224731326,-500.0,0.00055342,120]
[399272226,1766224731363,-559.05,0.00055342,120]
[399272227,1766224731399,-500.0,0.00055342,120]
[399272228,1766224731438,-500.0,0.00055342,120]
[399272229,1766224731474,-500.0,0.00055342,120]
[399272230,1766224731511,-500.0,0.00055342,120]
[399272231,1766224731546,-578.53,0.00055342,120]
[399272232,1766224731579,-500.0,0.00055342,120]
[399272233,1766224731611,-500.0,0.00055342,120]
[399272234,1766224731645,-1052.69,0.00055342,120]
[399272235,1766224731676,-500.0,0.00055342,120]
[399272236,1766224731709,-500.0,0.00055342,120]
[399272237,1766224731741,-500.0,0.00055342,120]
[399272238,1766224731778,-500.0,0.00055342,120]
[399272239,1766224731811,-1322.14,0.00055342,120]
[399272240,1766224731844,-1464.97,0.00055342,120]
[399272241,1766224731879,-761.18,0.00055342,120]
[399272242,1766224731915,-500.0,0.00055342,120]
[399272243,1766224731951,-500.0,0.00055342,120]
[399272244,1766224731984,-500.0,0.00055342,120]
[399272245,1766224732022,-500.0,0.00055342,120]
[399272246,1766224732056,-500.0,0.00055342,120]
[399272247,1766224732090,-500.0,0.00055342,120]
[399272248,1766224732122,-500.0,0.00055342,120]
[399272249,1766224732154,-500.0,0.00055342,120]
[399272250,1766224732186,-500.0,0.00055342,120]
[399272251,1766224732228,-500.0,0.00055342,120]
[399272252,1766224732260,-500.0,0.00055342,120]
[399272253,1766224732292,-500.0,0.00055342,120]
[399272254,1766224732324,-500.0,0.00055342,120]
[399272255,1766224732357,-541.80889877,0.00055342,120]
[399272256,1766224732390,-837.11,0.00055342,120]
[399272257,1766224732430,-567.66,0.00055342,120]
[399272258,1766224732468,-500.0,0.00055342,120]
[399272259,1766224732503,-500.0,0.00055342,120]
[399272260,1766224732538,-1804.46,0.00055342,120]
[399272261,1766224732570,-500.0,0.00055342,120]
[399272262,1766224732602,-500.0,0.00055342,120]
[399272263,1766224732634,-1082.04,0.00055342,120]
[399272264,1766224732665,-500.0,0.00055342,120]
[399272265,1766224732697,-1647.56,0.00055342,120]
[399272266,1766224732729,-500.0,0.00055342,120]
[399272267,1766224732760,-500.0,0.00055342,120]
[399272268,1766224732793,-500.0,0.00055342,120]
[399272269,1766224732824,-500.0,0.00055342,120]
[399272270,1766224732857,-500.0,0.00055342,120]
[399272271,1766224732889,-635.03,0.00055342,120]
[399272272,1766224732930,-500.0,0.00055342,120]
[399272273,1766224732983,-500.0,0.00055342,120]
[399272274,1766224733017,-500.0,0.00055342,120]
[399272275,1766224733053,-500.0,0.00055342,120]
[399272276,1766224733091,-968.29,0.00055342,120]
[399272277,1766224733124,-363.55991094,0.00055342,120]
[399272278,1766224733157,-500.0,0.00055342,120]
[399272279,1766224733192,-500.0,0.00055342,120]
[399272280,1766224733226,-500.0,0.00055342,120]
[399272281,1766224733259,-877.02,0.00055342,120]
[399272282,1766224733293,-801.01,0.00055342,120]
[399272283,1766224733327,-500.0,0.00055342,120]
[399272284,1766224733362,-500.0,0.00055342,120]
[399272285,1766224733398,-500.0,0.00055342,120]
[399272286,1766224733435,-758.02,0.00055342,120]
[399272287,1766224733470,-500.0,0.00055342,100]
[399272288,1766224733509,-500.0,0.00055342,120]
[399272289,1766224733542,-463.74456414,0.00055342,120]
[399272290,1766224733582,-968.14,0.00055342,120]
[399272291,1766224733626,-500.0,0.00055342,120]
[399272292,1766224733662,-500.0,0.00055342,120]
[399272293,1766224733695,-500.0,0.00055342,120]
[399272294,1766224733728,-500.0,0.00055342,120]
[399272295,1766224733761,-500.0,0.00055342,120]
[399272296,1766224733792,-500.0,0.00055342,120]
[399272297,1766224733826,-848.49,0.00055342,120]
[399272298,1766224733857,-500.0,0.00055342,120]
[399272299,1766224733889,-513.76,0.00055342,120]
[399272300,1766224733925,-1006.91,0.00055342,120]
[399272301,1766224733959,-1796.95,0.00055342,120]
[399272302,1766224733993,-500.0,0.00055342,120]
[399272303,1766224734028,-500.0,0.00055342,120]
[399272304,1766224734063,-500.0,0.00055342,120]
[399272305,1766224734096,-548.45052302,0.00055342,120]
[399272306,1766224734129,-928.79,0.00055342,120]
[399272307,1766224734163,-500.0,0.00055342,120]
[399272308,1766224734197,-500.0,0.00055342,120]
[399272309,1766224734231,-500.0,0.00055342,120]
[399272310,1766224734265,-500.0,0.00055342,120]
[399272311,1766224734297,-500.0,0.00055342,120]
[399272312,1766224734329,-539.47,0.00055342,120]
[399272313,1766224734362,-500.0,0.00055342,120]
[399272314,1766224734395,-818.72,0.00055342,120]
[399272315,1766224734428,-500.0,0.00055342,120]
[399272316,1766224734464,-500.0,0.00055342,120]
[399272317,1766224734500,-500.0,0.00055342,120]
[399272318,1766224734694,-1368.29,0.00055342,120]
[399272319,1766224734732,-500.0,0.00055342,120]
[399272320,1766224734769,-773.04,0.00055342,120]
[399272321,1766224734806,-500.0,0.00055342,120]
[399272322,1766224734843,-574.62974865,0.00055342,120]
[399272323,1766224734878,-500.0,0.00055342,120]
[399272324,1766224734913,-500.0,0.00055342,120]
[399272325,1766224734963,-504.34,0.00055342,120]
[399272326,1766224734999,-551.95,0.00055342,120]
[399272327,1766224735035,-524.43,0.00055342,120]
[399272328,1766224735070,-500.0,0.00055342,120]
[399272329,1766224735105,-750.62,0.00055342,120]
[399272330,1766224735139,-500.0,0.00055342,120]
[399272331,1766224735175,-500.0,0.00055342,120]
[399272332,1766224735212,-500.0,0.00055342,120]
[399272333,1766224735249,-500.0,0.00055342,120]
[399272334,1766224735282,-500.0,0.00055342,120]
[399272335,1766224735315,-996.88,0.00055342,120]
[399272336,1766224735347,-931.8,0.00055342,120]
[399272337,1766224735380,-649.34,0.00055342,120]
[399272338,1766224735413,-500.0,0.00055342,120]
[399272339,1766224735444,-500.0,0.00055342,120]
[399272340,1766224735475,-500.0,0.00055342,120]
[399272341,1766224735508,-1291.11,0.00055342,120]
[399272342,1766224735543,-751.54,0.00055342,120]
[399272343,1766224735576,-500.0,0.00055342,120]
[399272344,1766224735609,-500.0,0.00055342,120]
[399272345,1766224735641,-707.52,0.00055342,120]
[399272346,1766224735673,-1461.8,0.00055342,120]
[399272347,1766224735704,-500.0,0.00055342,120]
[399272348,1766224735736,-760.03,0.00055342,120]
[399272349,1766224735769,-500.0,0.00055342,120]
[399272350,1766224735801,-1594.19,0.00055342,120]
[399272351,1766224735833,-500.0,0.00055342,120]
[399272352,1766224735864,-501.32,0.00055342,120]
[399272353,1766224735896,-500.0,0.00055342,120]
[399272354,1766224735927,-502.8542408,0.00055342,120]
[399272355,1766224735961,-502.64185218,0.00055342,120]
[399272356,1766224735997,-500.0,0.00055342,120]
[399272357,1766224736031,-500.0,0.00055342,120]
[399272358,1766224736064,-1033.86,0.00055342,120]
[399272359,1766224736095,-1584.41,0.00055342,120]
[399272360,1766224736128,-500.0,0.00055342,120]
[399272361,1766224736160,-500.0,0.00055342,120]
[399272362,1766224736193,-500.0,0.00055342,120]
[399272363,1766224736226,-500.0,0.00055342,120]
[399272364,1766224736259,-500.0,0.00055342,120]
[399272365,1766224736293,-500.0,0.00055342,60]
[399272366,1766224736325,-500.0,0.00055342,120]
[399272367,1766224736361,-809.01,0.00055342,120]
[399272368,1766224736395,-1007.92,0.00055342,120]
[399272369,1766224736428,-500.0,0.00055342,120]
[399272370,1766224736464,-500.0,0.00055342,120]
[399272371,1766224736499,-500.0,0.00055342,120]
[399272372,1766224736533,-500.0,0.00055342,120]
[399272373,1766224736565,-500.0,0.00055342,120]
[399272374,1766224736598,-748.48,0.00055342,120]
[399272375,1766224736630,-500.0,0.00055342,120]
[399272376,1766224736663,-500.0,0.00055342,120]
[399272377,1766224736694,-500.0,0.00055342,120]
[399272378,1766224736726,-500.0,0.00055342,120]
[399272379,1766224736759,-500.0,0.00055342,120]
[399272380,1766224736791,-500.0,0.00055342,120]
[399272381,1766224736824,-500.0,0.00055342,120]
[399272382,1766224736857,-500.0,0.00055342,120]
[399272383,1766224736889,-500.0,0.00055342,120]
[399272384,1766224736922,-500.0,0.00055342,120]
[399272385,1766224736956,-959.28,0.00055342,120]
[399272386,1766224736989,-500.0,0.00055342,120]
[399272387,1766224737022,-500.0,0.00055342,120]
[399272388,1766224737056,-2015.0,0.00055342,120]
[399272389,1766224737092,-500.0,0.00055342,120]